bitfinex-derivatives/quotes_SOLF0:USTF0_20240902
["timestamp","ask_amount","ask_price","bid_price","bid_amount"]
[1725311958863,0.05167944,134.44,134.42,3.7198]
[1725311960066,0.05167944,134.44,134.43,3.7195]
[1725311960962,28.6,134.51,134.41,28.6]
[1725311960963,32.3174,134.51,134.41,28.6]
[1725311961168,36.07883717,134.51,134.41,28.6]
[1725311961371,36.07883717,134.51,134.46,3.7185]
[1725311961867,3.76722264,134.5,134.47,0.05297041]
[1725311962362,0.04942264,134.5,134.47,0.05297041]
[1725311964073,0.04942264,134.5,134.49,3.7179]
[1725311964369,0.04942264,134.5,134.49,32.3179]
[1725311964562,3.7159,134.57,134.52,3.7169]
[1725311964767,3.66448542,134.56,134.52,3.7169]
[1725311965659,0.05040539,134.55,134.53,0.05539109]
[1725311966469,225.0,134.67,134.53,57.25539109]
[1725311966665,29.9799,134.64,134.53,3.68031447]
[1725311966865,33.6937,134.64,134.58,3.7154]
[1725311967667,3.7141,134.63,134.58,3.7154]
[1725311967869,0.04759408,134.62,134.6,0.05605024]
[1725311970779,0.04759408,134.62,134.6,3.77085024]
[1725311971171,0.04759408,134.62,134.61,3.7146]
[1725311979784,0.04759408,134.62,134.6,0.05605024]
[1725311985300,0.04759408,134.62,134.61,3.7146]
[1725311986397,0.04759408,134.62,134.6,3.77075024]
[1725311986697,0.04759408,134.62,134.6,0.05605024]
[1725311986896,0.04759408,134.62,134.61,3.7146]
[1725311990701,0.04759408,134.62,134.61,32.3146]
[1725311992305,1.3675,134.68,134.61,28.6]
[1725311992508,5.11128317,134.68,134.61,28.6]
[1725311992797,1.3675,134.68,134.65,3.7133]
[1725311992997,1.3675,134.68,134.61,28.6]
[1725311993205,1.3675,134.68,134.66,3.713]
[1725311993206,1.42050214,134.68,134.66,3.713]
[1725311994692,0.05300214,134.68,134.66,3.713]
[1725311995098,28.65300214,134.68,134.65,0.05607675]
[1725311995602,32.36570214,134.68,134.65,0.05607675]
[1725311996199,28.65300214,134.68,134.65,0.05607675]
[1725311996406,2.7996,134.67,134.65,0.05607675]
[1725311996699,2.7996,134.67,134.57,28.6]
[1725311996700,3.7136,134.65,134.57,28.6]
[1725311997605,0.04685816,134.62,134.6,0.05068902]
[1725311997806,0.04685816,134.62,134.61,3.7144]
[1725311998701,0.04685816,134.62,134.61,32.3144]
[1725311998892,3.76569402,134.69,134.63,3.7139]
[1725311998893,3.7127,134.68,134.63,3.7139]
[1725311999802,0.05236318,134.67,134.64,0.04897951]
[1725312000596,0.05236318,134.67,134.64,3.76267951]
[1725312002908,0.05236318,134.67,134.65,3.7134]
[1725312005104,0.05236318,134.67,134.66,3.7132]
[1725312010410,0.05236318,134.67,134.66,32.3132]
[1725312010619,1.3745,134.72,134.7,3.7119]
[1725312010909,3.7106,134.76,134.68,28.6]
[1725312011504,0.05267905,134.73,134.71,3.76205224]
[1725312012315,0.05267905,134.73,134.72,3.7115]
[1725312018118,3.7099,134.78,134.74,3.7109]
[1725312018317,7.43685918,134.79,134.74,3.7109]
[1725312018621,3.7097,134.79,134.74,3.7109]
[1725312019021,3.72449499,134.78,134.74,3.7109]
[1725312019324,0.05277366,134.77,134.75,0.05629206]
[1725312022028,0.05277366,134.77,134.75,3.76699206]
[1725312023224,0.05277366,134.77,134.75,0.05629206]
[1725312023431,0.05277366,134.77,134.76,32.3104]
[1725312023925,0.05277366,134.77,134.76,15.1004]
[1725312024120,3.709,134.82,134.76,15.1004]
[1725312024323,3.65409738,134.84,134.8,11.39]
[1725312024627,3.66040458,134.84,134.8,11.39]
[1725312024830,1.341,134.86,134.8,11.39]
[1725312025222,0.05344301,134.84,134.82,3.75692546]
[1725312025418,3.83294245,134.84,134.82,3.75692546]
[1725312026422,0.05344301,134.84,134.82,0.04832546]
[1725312027326,0.05344301,134.84,134.82,3.75702546]
[1725312029127,3.76184301,134.84,134.82,0.04832546]
[1725312029629,0.05344301,134.84,134.82,0.04832546]
[1725312030729,3.76184301,134.84,134.82,0.04832546]
[1725312031524,0.05344301,134.84,134.82,0.04832546]
[1725312033020,3.76174301,134.84,134.82,0.04832546]
[1725312034533,3.7085,134.83,134.82,0.04832546]
[1725312038327,0.05344301,134.84,134.82,0.04832546]
[1725312039130,0.05344301,134.84,134.82,3.75692546]
[1725312039635,0.05344301,134.84,134.83,3.7085]
[1725312039835,0.05344301,134.84,134.82,0.04832546]
[1725312040228,0.05344301,134.84,134.83,3.7085]
[1725312043737,0.05344301,134.84,134.82,3.75692546]
[1725312044433,0.05344301,134.84,134.83,3.7085]
[1725312044831,0.05344301,134.84,134.82,0.04832546]
[1725312046331,0.05344301,134.84,134.82,3.75692546]
[1725312048031,0.05344301,134.84,134.82,15.14692546]
[1725312049427,0.05344301,134.84,134.82,0.04832546]
[1725312051134,3.76174301,134.84,134.82,0.04832546]
[1725312053132,3.76174301,134.84,134.82,3.75702546]
[1725312053133,0.05344301,134.84,134.82,3.75702546]
[1725312053335,0.05344301,134.84,134.82,15.14702546]
[1725312055440,0.05344301,134.84,134.83,11.39]
[1725312059940,0.05344301,134.84,134.83,15.0985]
[1725312061435,0.05344301,134.84,134.83,3.7085]
[1725312067951,0.05344301,134.84,134.83,15.0985]
[1725312068147,0.05344301,134.84,134.83,11.39]
[1725312073747,0.05344301,134.84,134.83,15.0985]
[1725312075753,3.76164301,134.84,134.82,0.04832546]
[1725312076054,0.05344301,134.84,134.82,0.04832546]
[1725312076253,3.7085,134.83,134.82,0.04832546]
[1725312081056,0.05344301,134.84,134.73,45.7167]
[1725312081057,11.44344301,134.84,134.73,45.7167]
[1725312081263,11.39,134.84,134.77,11.39]
[1725312081558,11.39,134.84,134.78,3.7099]
[1725312081964,3.7093,134.81,134.8,0.05243045]
[1725312085667,3.76312336,134.82,134.8,0.05243045]
[1725312085859,3.76312336,134.82,134.8,11.44243045]
[1725312086061,0.05422336,134.82,134.8,11.44243045]
[1725312087064,0.05422336,134.82,134.8,15.15173045]
[1725312087261,3.76302336,134.82,134.8,3.76173045]
[1725312088362,0.05422336,134.82,134.8,3.76173045]
[1725312088566,0.05422336,134.82,134.81,3.7091]
[1725312100481,0.05422336,134.82,134.8,15.15153045]
[1725312100684,0.05422336,134.82,134.8,0.05243045]
[1725312105792,3.7091,134.81,134.8,0.05243045]
[1725312106089,2.8582,134.84,134.72,12.7467]
[1725312106293,11.39,134.78,134.72,11.39]
[1725312106481,15.13805703,134.78,134.72,11.39]
[1725312106683,18.84825703,134.78,134.73,3.7111]
[1725312106894,0.04975888,134.77,134.74,0.05035522]
[1725312108089,3.75995888,134.77,134.74,0.05035522]
[1725312108799,0.04975888,134.77,134.74,0.05035522]
[1725312109299,11.39,134.76,134.74,0.05035522]
[1725312109686,0.04975888,134.77,134.74,0.05035522]
[1725312109888,11.39,134.76,134.74,0.05035522]
[1725312110386,3.7107,134.75,134.74,0.05035522]
[1725312110792,11.39,134.76,134.54,13.44757438]
[1725312110992,11.39,134.76,134.69,3.7122]
[1725312110993,3.7114,134.73,134.69,3.7122]
[1725312111696,1.4604,134.75,134.69,3.7122]
[1725312111899,0.05322043,134.72,134.7,0.05315954]
[1725312113888,0.05322043,134.72,134.7,3.76505954]
[1725312114698,0.05322043,134.72,134.71,3.7118]
[1725312119800,0.05322043,134.72,134.71,15.1018]
[1725312120510,0.05322043,134.72,134.71,3.7118]
[1725312120708,0.05322043,134.72,134.71,15.1018]
[1725312125609,3.74805703,134.78,134.75,3.7106]
[1725312125810,11.39,134.78,134.75,3.7106]
[1725312125997,15.05540063,134.78,134.75,3.7106]
[1725312126304,15.14890954,134.78,134.75,3.7106]
[1725312126608,15.14890954,134.78,134.75,3.76765954]
[1725312126609,15.19643451,134.78,134.75,3.76765954]
[1725312127407,5.21213451,134.78,134.75,0.05705954]
[1725312127609,11.39,134.76,134.75,0.05705954]
[1725312128307,11.39,134.76,134.71,3.7116]
[1725312128609,11.39,134.75,134.69,11.39]
[1725312129309,0.04829745,134.73,134.71,0.04739344]
[1725312129702,0.04829745,134.73,134.72,3.7115]
[1725312137615,0.04829745,134.73,134.72,15.1015]
[1725312148126,0.04829745,134.73,134.72,3.7115]
[1725312151130,0.04829745,134.73,134.71,3.75909344]
[1725312157130,0.04829745,134.73,134.71,0.04739344]
[1725312157942,0.04829745,134.73,134.72,3.7115]
[1725312182358,0.04829745,134.73,134.71,0.04739344]
[1725312182552,11.43829745,134.73,134.71,0.04739344]
[1725312183362,0.04829745,134.73,134.71,11.43739344]
[1725312183756,0.04829745,134.73,134.71,0.04739344]
[1725312183956,0.04829745,134.73,134.71,3.75909344]
[1725312186455,0.04829745,134.73,134.71,0.04739344]
[1725312195468,3.75959745,134.73,134.71,0.04739344]
[1725312199078,3.7115,134.72,134.71,0.04739344]
[1725312202182,3.7119,134.71,134.67,3.7127]
[1725312202386,3.80057299,134.7,134.67,3.7127]
[1725312202679,7.51277299,134.7,134.67,3.7127]
[1725312203280,7.56197634,134.7,134.67,3.76955486]
[1725312203787,11.39,134.69,134.56,3.62940713]
[1725312204084,3.84977634,134.7,134.6,11.39]
[1725312204085,11.39,134.67,134.6,11.39]
[1725312204586,3.7138,134.64,134.6,3.7148]
[1725312204988,0.05223822,134.63,134.61,0.05451633]
[1725312205686,3.76633822,134.63,134.61,0.05451633]
[1725312206085,0.05223822,134.63,134.61,0.05451633]
[1725312206991,3.7143,134.62,134.61,0.05451633]
[1725312207785,11.44223822,134.63,134.55,3.716]
[1725312207985,11.39,134.6,134.53,15.13591503]
[1725312208188,11.39,134.58,134.46,3.36189359]
[1725312208389,3.7159,134.57,134.52,3.7169]
[1725312208596,11.39,134.58,134.51,11.39]
[1725312208791,0.05716988,134.56,134.53,0.05124995]
[1725312209286,3.77326988,134.56,134.53,0.05124995]
[1725312209690,0.05716988,134.56,134.53,0.05124995]
[1725312210092,3.7162,134.55,134.53,0.05124995]
[1725312210591,0.05716988,134.56,134.53,0.05124995]
[1725312211396,3.77316988,134.56,134.53,0.05124995]
[1725312212993,3.7162,134.55,134.53,0.05124995]
[1725312213805,0.05716988,134.56,134.53,0.05124995]
[1725312214192,15.1064,134.55,134.53,0.05124995]
[1725312214387,11.39,134.55,134.53,0.05124995]
[1725312214587,12.7275,134.55,134.53,0.05124995]
[1725312215121,3.7165,134.54,134.53,0.05124995]
[1725312217092,3.7168,134.53,134.49,15.1078]
[1725312217494,3.7168,134.53,134.49,3.7178]
[1725312217695,3.7171,134.52,134.48,15.1081]
[1725312217897,0.05477907,134.51,134.49,0.04997114]
[1725312221899,3.77217907,134.51,134.49,0.04997114]
[1725312222100,0.05477907,134.51,134.49,0.04997114]
[1725312222498,11.39,134.5,134.49,0.04997114]
[1725312222701,15.1076,134.5,134.49,0.04997114]
[1725312226902,3.74381876,134.51,134.49,0.04997114]
[1725312227108,0.05477907,134.51,134.49,0.04997114]
[1725312228611,3.77217907,134.51,134.49,0.04997114]
[1725312230605,0.05477907,134.51,134.49,0.04997114]
[1725312230801,0.05477907,134.51,134.5,3.7176]
[1725312231307,0.05477907,134.51,134.5,7.38210557]
[1725312231907,0.05477907,134.51,134.5,3.7176]
[1725312232417,0.05477907,134.51,134.5,7.47169229]
[1725312232610,15.106,134.56,134.51,3.7173]
[1725312233114,18.76672092,134.56,134.51,3.7173]
[1725312233303,7.37672092,134.56,134.51,3.7173]
[1725312233611,15.16129714,134.55,134.52,0.05226704]
[1725312237517,3.77129714,134.55,134.52,0.05226704]
[1725312237711,11.39,134.54,134.52,0.05226704]
[1725312239918,11.39,134.53,134.52,0.05226704]
[1725312240119,3.7168,134.53,134.52,0.05226704]
[1725312240429,15.1068,134.53,134.52,0.05226704]
[1725312241315,3.7173,134.51,134.45,14.75189359]
[1725312241617,11.39,134.5,134.45,11.39]
[1725312241817,2.8601,134.54,134.44,16.21669359]
[1725312242017,11.39,134.49,134.45,2.61394652]
[1725312242419,0.04839051,134.48,134.46,0.05096442]
[1725312243023,0.04839051,134.48,134.47,11.39]
[1725312244220,0.04839051,134.48,134.46,0.05096442]
[1725312246830,0.04839051,134.48,134.46,3.76966442]
[1725312248325,0.04839051,134.48,134.46,0.05096442]
[1725312249430,0.04839051,134.48,134.46,3.76966442]
[1725312250127,0.04839051,134.48,134.46,0.05096442]
[1725312251924,0.04839051,134.48,134.46,3.76966442]
[1725312254331,0.04839051,134.48,134.46,0.05096442]
[1725312258536,7.421,134.66,134.51,13.0]
[1725312258743,2.7715,134.64,134.54,11.39]
[1725312258932,2.7715,134.64,134.55,3.716]
[1725312259131,3.7143,134.62,134.55,15.106]
[1725312259438,0.05507079,134.6,134.57,0.04986059]
[1725312261637,0.05507079,134.6,134.57,3.76546059]
[1725312267135,0.05507079,134.6,134.59,15.1051]
[1725312267329,16.42781136,134.67,134.59,11.39]
[1725312268136,16.42781136,134.67,134.62,3.7141]
[1725312268438,0.0506193,134.66,134.63,0.04777515]
[1725312270441,11.39,134.64,134.63,0.04777515]
[1725312270941,0.0506193,134.66,134.63,0.04777515]
[1725312272838,0.0506193,134.66,134.65,3.7135]
[1725312277654,0.0506193,134.66,134.63,0.04777515]
[1725312278748,0.0506193,134.66,134.65,3.7135]
[1725312281158,0.0506193,134.66,134.64,3.7137]
[1725312284863,28.5506193,134.66,134.63,0.04777515]
[1725312286061,32.2639193,134.66,134.63,0.04777515]
[1725312286661,28.5506193,134.66,134.63,0.04777515]
[1725312286858,0.0506193,134.66,134.63,0.04777515]
[1725312287458,0.0506193,134.66,134.64,3.7137]
[1725312288365,0.0506193,134.66,134.63,3.76177515]
[1725312291063,0.0506193,134.66,134.64,3.7137]
[1725312291763,0.0506193,134.66,134.63,0.04777515]
[1725312292162,0.0506193,134.66,134.64,3.7135]
[1725312292962,0.0506193,134.66,134.64,3.7137]
[1725312297964,0.0506193,134.66,134.63,0.04777515]
[1725312298165,0.0506193,134.66,134.63,3.76167515]
[1725312298370,0.0506193,134.66,134.63,0.04777515]
[1725312298770,0.0506193,134.66,134.64,3.7136]
[1725312299262,0.0506193,134.66,134.63,3.76167515]
[1725312301867,0.0506193,134.66,134.63,0.04777515]
[1725312301868,15.1638193,134.66,134.63,0.04777515]
[1725312303471,11.4,134.65,134.55,2.7036]
[1725312303677,11.4,134.62,134.56,11.4]
[1725312304376,15.1143,134.62,134.58,3.7153]
[1725312304573,0.05642954,134.6,134.58,3.76381534]
[1725312305664,0.05642954,134.6,134.58,0.04851534]
[1725312306769,3.77122954,134.6,134.58,0.04851534]
[1725312309777,0.05642954,134.6,134.58,0.04851534]
[1725312309977,0.05642954,134.6,134.59,11.4]
[1725312310375,1.4158,134.66,134.59,11.4]
[1725312310672,12.8158,134.66,134.58,11.4]
[1725312311280,0.05417272,134.63,134.61,0.04736451]
[1725312312978,0.05417272,134.63,134.61,3.76186451]
[1725312314579,0.05417272,134.63,134.62,3.7143]
[1725312327694,0.05417272,134.63,134.61,0.04736451]
[1725312334791,0.05417272,134.63,134.61,3.76196451]
[1725312350706,3.76758826,134.63,134.61,3.76196451]
[1725312351106,11.4,134.68,134.61,11.44736451]
[1725312351312,15.17293322,134.68,134.61,11.4]
[1725312352013,15.17293322,134.68,134.63,0.05675699]
[1725312352014,0.04690422,134.66,134.63,0.05675699]
[1725312352217,3.76010422,134.66,134.63,3.77065699]
[1725312353715,0.04690422,134.66,134.63,0.05675699]
[1725312354306,0.04690422,134.66,134.64,3.7136]
[1725312356014,0.04690422,134.66,134.63,0.05675699]
[1725312356613,0.04690422,134.66,134.64,3.7135]
[1725312358121,0.04690422,134.66,134.65,3.7135]
[1725312358419,225.0,134.77,134.62,15.09513367]
[1725312358420,3.68696353,134.71,134.62,3.69513367]
[1725312358620,11.4,134.72,134.64,11.4]
[1725312359012,15.1117,134.72,134.64,11.4]
[1725312359516,0.0481581,134.69,134.67,3.76389738]
[1725312359818,0.0481581,134.69,134.67,0.05119738]
[1725312361224,0.0481581,134.69,134.68,3.7126]
[1725312364118,2.733,134.75,134.73,3.7112]
[1725312364312,2.733,134.75,134.69,11.4]
[1725312364516,1.3706,134.75,134.69,11.4]
[1725312364724,1.3706,134.75,134.72,3.7113]
[1725312365118,1.42487288,134.75,134.72,0.05585882]
[1725312365326,1.42487288,134.75,134.73,3.7111]
[1725312365619,0.05427288,134.75,134.73,3.7111]
[1725312366028,0.05427288,134.75,134.72,0.05585882]
[1725312366326,3.78313868,134.74,134.72,0.05585882]
[1725312366521,0.05427288,134.75,134.72,0.05585882]
[1725312366722,0.05427288,134.75,134.72,3.76725882]
[1725312367227,7.31429099,135.01,134.74,11.4]
[1725312367420,1.3961,134.9,134.82,11.4]
[1725312367720,11.4,134.89,134.81,11.4]
[1725312368224,11.4,134.89,134.84,0.05061977]
[1725312368225,0.05340233,134.86,134.84,0.05061977]
[1725312369627,3.80507625,134.86,134.84,0.05061977]
[1725312369816,0.05340233,134.86,134.84,0.05061977]
[1725312370024,3.81992114,134.86,134.84,0.05061977]
[1725312370221,0.05340233,134.86,134.84,0.05061977]
[1725312372616,11.4,134.85,134.78,11.4]
[1725312372824,11.4,134.85,134.75,82.39804415]
[1725312373021,11.4,134.85,134.78,11.4]
[1725312373721,0.05602162,134.83,134.8,0.05020969]
[1725312374930,0.05602162,134.83,134.8,3.75930969]
[1725312376226,0.05602162,134.83,134.81,3.709]
[1725312376625,11.4,134.82,134.8,0.05020969]
[1725312376837,49.25237143,134.87,134.52,7.74476403]
[1725312376838,11.4,134.81,134.66,45.6]
[1725312377129,12.8362,134.81,134.74,11.4]
[1725312377430,12.8362,134.81,134.77,3.7101]
[1725312377820,0.04846204,134.8,134.78,0.05373157]
[1725312378628,3.76817565,134.79,134.78,0.05373157]
[1725312379528,0.04846204,134.8,134.78,3.76343157]
[1725312379831,0.04846204,134.8,134.78,0.05373157]
[1725312380024,0.04846204,134.8,134.79,3.7096]
[1725312381334,0.04846204,134.8,134.78,3.76353157]
[1725312381837,3.76201682,134.8,134.78,0.05373157]
[1725312382923,0.04846204,134.8,134.78,3.76353157]
[1725312385327,3.78826319,134.8,134.78,0.05373157]
[1725312386928,7.49756319,134.8,134.78,0.05373157]
[1725312387234,3.78826319,134.8,134.78,0.05373157]
[1725312387934,15.18826319,134.8,134.78,0.05373157]
[1725312388327,3.7096,134.79,134.78,0.05373157]
[1725312390234,3.7096,134.79,134.75,3.7105]
[1725312390435,15.11,134.78,134.75,3.7105]
[1725312391138,15.11,134.78,134.75,3.7625831]
[1725312391337,15.11,134.78,134.75,0.0520831]
[1725312398235,11.4,134.77,134.75,0.0520831]
[1725312399239,2.8287,134.78,134.75,0.0520831]
[1725312400244,2.8287,134.78,134.75,3.7627831]
[1725312400841,14.2287,134.78,134.75,0.0520831]
[1725312401239,3.7104,134.77,134.75,0.0520831]
[1725312403347,6.5388,134.78,134.75,0.0520831]
[1725312403647,17.9388,134.78,134.75,0.0520831]
[1725312405343,3.7103,134.77,134.75,0.0520831]
[1725312406039,3.78826319,134.8,134.75,0.0520831]
[1725312406255,3.78826319,134.8,134.79,3.7096]
[1725312406742,0.04846204,134.8,134.79,3.7096]
[1725312411247,3.78223794,134.8,134.78,3.76163728]
[1725312411448,0.04846204,134.8,134.78,3.76163728]
[1725312411952,3.80894486,134.8,134.78,3.76163728]
[1725312412351,11.4,134.79,134.78,0.05183728]
[1725312414061,0.04846204,134.8,134.78,0.05183728]
[1725312415453,0.04846204,134.8,134.79,3.7096]
[1725312421861,0.04846204,134.8,134.78,11.45183728]
[1725312421862,11.44846204,134.8,134.78,0.05183728]
[1725312422655,12.83956204,134.8,134.78,0.05183728]
[1725312423159,16.54896204,134.8,134.78,0.05183728]
[1725312423563,12.83956204,134.8,134.78,0.05183728]
[1725312423865,11.4,134.79,134.7,3.77407467]
[1725312424064,11.4,134.79,134.71,11.4]
[1725312424865,0.05059602,134.76,134.74,0.05546183]
[1725312427760,3.62950886,134.75,134.74,0.05546183]
[1725312435065,15.16109602,134.76,134.74,0.05546183]
[1725312435267,3.63153194,134.75,134.74,0.05546183]
[1725312435666,15.16109602,134.76,134.74,0.05546183]
[1725312435667,0.05059602,134.76,134.75,3.7107]
[1725312440765,0.05059602,134.76,134.74,3.76626183]
[1725312442473,0.05059602,134.76,134.75,3.7107]
[1725312445366,0.05059602,134.76,134.74,3.76626183]
[1725312447178,11.45059602,134.76,134.74,0.05546183]
[1725312448478,11.45059602,134.76,134.74,3.76626183]
[1725312451180,0.05059602,134.76,134.75,3.7107]
[1725312454387,0.05059602,134.76,134.74,3.76636183]
[1725312454593,11.45059602,134.76,134.74,0.05546183]
[1725312454887,0.05059602,134.76,134.74,0.05546183]
[1725312455683,0.05059602,134.76,134.74,3.76646183]
[1725312458189,0.05059602,134.76,134.74,0.05546183]
[1725312469588,15.16129602,134.76,134.74,0.05546183]
[1725312473102,3.77996289,134.75,134.74,0.05546183]
[1725312473698,3.76129602,134.76,134.74,0.05546183]
[1725312475996,0.05059602,134.76,134.74,0.05546183]
[1725312479107,0.05059602,134.76,134.74,3.76626183]
[1725312480596,11.45059602,134.76,134.74,0.05546183]
[1725312481506,3.7107,134.75,134.74,0.05546183]
[1725312481705,7.35198127,134.75,134.74,0.05546183]
[1725312483600,7.35198127,134.75,134.66,80.63722809]
[1725312483601,6.43828127,134.75,134.66,80.63722809]
[1725312483804,11.4,134.73,134.67,11.4]
[1725312484002,15.1114,134.73,134.69,3.7121]
[1725312484604,0.05066083,134.72,134.7,0.04701795]
[1725312488109,0.05066083,134.72,134.7,3.75901795]
[1725312495015,11.4,134.71,134.7,0.04701795]
[1725312496116,15.1118,134.71,134.7,0.04701795]
[1725312497515,0.05066083,134.72,134.55,7.6916]
[1725312497713,11.4,134.67,134.61,11.4]
[1725312498121,15.1131,134.67,134.63,3.7139]
[1725312498312,18.80436063,134.67,134.63,3.7139]
[1725312498621,0.04799619,134.66,134.64,0.05009479]
[1725312499215,3.76119619,134.66,134.64,0.05009479]
[1725312499645,11.44799619,134.66,134.64,0.05009479]
[1725312500223,15.16129619,134.66,134.64,0.05009479]
[1725312500428,11.44799619,134.66,134.64,0.05009479]
[1725312500625,3.7135,134.65,134.64,0.05009479]
[1725312501020,15.1135,134.65,134.64,0.05009479]
[1725312507127,3.7135,134.65,134.64,0.05009479]
[1725312507423,15.1135,134.65,134.64,0.05009479]
[1725312507824,3.7138,134.64,134.61,3.7145]
[1725312508029,11.4,134.62,134.61,3.7145]
[1725312508635,11.4,134.62,134.6,3.7147]
[1725312508930,11.45008353,134.62,134.6,3.76720783]
[1725312509435,15.24242648,134.62,134.6,3.76720783]
[1725312509630,11.45008353,134.62,134.6,0.05250783]
[1725312509936,15.24948303,134.62,134.6,0.05250783]
[1725312511634,0.05008353,134.62,134.6,3.76720783]
[1725312513630,0.05008353,134.62,134.6,0.05250783]
[1725312515539,0.05008353,134.62,134.6,3.76730783]
[1725312517335,0.05008353,134.62,134.6,0.05250783]
[1725312517535,11.4,134.61,134.6,0.05250783]
[1725312522832,0.05008353,134.62,134.6,3.76730783]
[1725312525739,0.05008353,134.62,134.61,3.7146]
[1725312530240,225.0,134.75,134.61,11.4]
[1725312530548,11.4,134.71,134.63,11.4]
[1725312530742,3.75297478,134.7,134.67,3.7127]
[1725312531343,0.04954375,134.7,134.67,0.05317877]
[1725312531540,3.82033956,134.7,134.67,0.05317877]
[1725312532350,3.82033956,134.7,134.68,3.7125]
[1725312536443,0.04954375,134.7,134.68,3.7125]
[1725312538245,0.04954375,134.7,134.68,3.7126]
[1725312538447,0.04954375,134.7,134.67,0.05317877]
[1725312538750,0.04954375,134.7,134.69,3.7124]
[1725312553568,11.4,134.74,134.73,3.7113]
[1725312554768,11.45230044,134.75,134.74,3.711]
[1725312555963,11.45230044,134.75,134.73,3.7111]
[1725312556359,11.45230044,134.75,134.72,0.04788188]
[1725312556564,11.45230044,134.75,134.73,3.7113]
[1725312557063,11.45230044,134.75,134.74,3.711]
[1725312559670,0.05230044,134.75,134.74,3.711]
[1725312575870,62.89098415,134.81,134.72,11.44788188]
[1725312576171,225.0,134.91,134.77,11.4]
[1725312576172,15.18719299,134.84,134.77,11.4]
[1725312576365,11.4,134.84,134.77,11.4]
[1725312576877,0.05151536,134.82,134.79,0.05693742]
[1725312577573,3.76302385,134.82,134.8,3.7093]
[1725312583372,0.05151536,134.82,134.81,3.7091]
[1725312587683,0.05151536,134.82,134.79,0.05693742]
[1725312587684,0.05151536,134.82,134.8,3.7092]
[1725312587887,0.05151536,134.82,134.79,0.05693742]
[1725312589377,0.05151536,134.82,134.81,3.7091]
[1725312590883,0.05151536,134.82,134.8,3.7092]
[1725312594484,3.76051536,134.82,134.79,0.05693742]
[1725312600490,3.76051536,134.82,134.79,3.76653742]
[1725312601385,3.76051536,134.82,134.79,0.05693742]
[1725312619792,3.7093,134.8,134.79,0.05693742]
[1725312623391,3.76041536,134.82,134.79,0.05693742]
[1725312630005,3.7092,134.81,134.79,0.05693742]
[1725312641109,11.4,134.81,134.67,42.62003214]
[1725312641319,2.6814,134.8,134.73,11.4]
[1725312641513,14.0814,134.8,134.73,15.18050589]
[1725312641934,3.7098,134.79,134.74,3.7108]
[1725312642124,0.05714777,134.78,134.75,0.04878583]
[1725312643430,3.76714777,134.78,134.75,0.04878583]
[1725312644529,3.70000742,134.77,134.75,0.04878583]
[1725312645129,0.05714777,134.78,134.75,3.75948583]
[1725312647035,3.7103,134.77,134.75,0.04878583]
[1725312647222,3.76048582,134.76,134.75,0.04878583]
[1725312647534,1.42074777,134.78,134.75,0.04878583]
[1725312647929,3.67477569,134.77,134.75,0.04878583]
[1725312649231,3.67477569,134.77,134.75,3.75948583]
[1725312650933,3.67477569,134.77,134.76,3.7104]
[1725312651135,1.42074777,134.78,134.76,3.7104]
[1725312651929,0.05714777,134.78,134.77,3.7102]
[1725312654735,0.05714777,134.78,134.75,11.44878583]
[1725312655035,3.69352325,134.77,134.75,11.44878583]
[1725312655430,3.69352325,134.77,134.75,15.15928583]
[1725312656936,3.69352325,134.77,134.75,3.75928583]
[1725312663036,0.05714777,134.78,134.76,3.7104]
[1725312667945,0.05714777,134.78,134.77,3.7102]
[1725312676157,0.05714777,134.78,134.76,3.7104]
[1725312680550,0.05714777,134.78,134.75,0.04878583]
[1725312681063,11.4,134.77,134.75,0.04878583]
[1725312681260,3.79664663,134.76,134.75,0.04878583]
[1725312683156,3.79664663,134.76,134.75,3.75948583]
[1725312685262,0.05714777,134.78,134.75,3.75948583]
[1725312688059,0.05714777,134.78,134.76,3.7104]
[1725312688464,0.05714777,134.78,134.75,3.75938583]
[1725312695165,0.05714777,134.78,134.75,0.04878583]
[1725312695469,11.4,134.76,134.64,11.4]
[1725312695778,11.4,134.71,134.67,3.7127]
[1725312696258,11.4,134.71,134.68,0.04692757]
[1725312696259,0.05017224,134.7,134.68,0.04692757]
[1725312696463,3.65854952,134.69,134.68,0.04692757]
[1725312700462,11.45017224,134.7,134.68,0.04692757]
[1725312700967,15.23673497,134.7,134.68,0.04692757]
[1725312702163,3.83673497,134.7,134.68,0.04692757]